fUST/lending_fUST_20240209
["ID","MTS","AMOUNT","RATE_DAILY","PERIOD"]
[313533220,1707411037580,-500.0,0.00020822,2]
[313533221,1707411037589,-262.27785603,0.00020822,2]
[313533222,1707411037603,-237.72214397,0.00020822,2]
[313533223,1707411037613,-500.0,0.00020822,2]
[313533224,1707411037622,-500.0,0.00020822,2]
[313533225,1707411037635,-500.0,0.00020822,2]
[313533226,1707411037644,-500.0,0.00020822,2]
[313533227,1707411037654,-500.0,0.00020822,2]
[313533228,1707411037663,-500.0,0.00020822,2]
[313533229,1707411037672,-246.30078404,0.00020822,2]
[313533230,1707411037684,-253.69921596,0.00020822,2]
[313533231,1707411037693,-500.0,0.00020822,2]
[313533232,1707411037702,-476.46682201,0.00020822,2]
[313533233,1707411037714,-23.53317799,0.00020822,2]
[313533234,1707411037722,-500.0,0.00020822,2]
[313533235,1707411037731,-500.0,0.00020822,2]
[313533236,1707411037740,-649.16556257,0.00020822,2]
[313533237,1707411037749,-500.0,0.00020822,2]
[313533238,1707411037758,-500.0,0.00020822,2]
[313533239,1707411037767,-500.0,0.00020822,2]
[313533240,1707411037776,-500.0,0.00020822,2]
[313533241,1707411037785,-500.0,0.00020822,2]
[313533242,1707411037795,-500.0,0.00020822,2]
[313533243,1707411037804,-500.0,0.00020822,2]
[313533244,1707411037813,-500.0,0.00020822,2]
[313533245,1707411037822,-500.0,0.00020822,2]
[313533246,1707411037831,-500.0,0.00020822,2]
[313533247,1707411037840,-500.0,0.00020822,2]
[313533248,1707411037850,-500.0,0.00020822,2]
[313533249,1707411037861,-500.0,0.00020822,2]
[313533250,1707411037870,-500.0,0.00020822,2]
[313533251,1707411037882,-491.44989196,0.00020822,2]
[313533252,1707411037892,-500.0,0.00020822,2]
[313533253,1707411037904,-559.22123476,0.00020822,2]
[313533255,1707411037913,-500.0,0.00020822,2]
[313533256,1707411037922,-500.0,0.00020822,2]
[313533258,1707411037931,-500.0,0.00020822,2]
[313533259,1707411037941,-500.0,0.00020822,2]
[313533260,1707411037950,-500.0,0.00020822,2]
[313533261,1707411037959,-500.0,0.00020822,2]
[313533262,1707411037969,-500.0,0.00020822,2]
[313533263,1707411037978,-500.0,0.00020822,2]
[313533264,1707411037989,-500.0,0.00020822,2]
[313533265,1707411037997,-500.0,0.00020822,2]
[313533266,1707411038005,-500.0,0.00020822,2]
[313533267,1707411038015,-194.56155644,0.00020822,2]
[313533268,1707411038024,-500.0,0.00020822,2]
[313533269,1707411038033,-500.0,0.00020822,2]
[313533271,1707411038043,-500.0,0.00020822,2]
[313533272,1707411038053,-500.0,0.00020822,2]
[313533273,1707411038062,-500.0,0.00020822,2]
[313533274,1707411038072,-500.0,0.00020822,2]
[313533275,1707411038081,-500.0,0.00020822,2]
[313533276,1707411038090,-500.0,0.00020822,2]
[313533277,1707411038098,-500.0,0.00020822,2]
[313533278,1707411038107,-500.0,0.00020822,2]
[313533279,1707411038116,-500.0,0.00020822,2]
[313533280,1707411038127,-500.0,0.00020822,2]
[313533281,1707411038136,-500.0,0.00020822,2]
[313533282,1707411038145,-229.46830486,0.00020822,2]
[313533283,1707411038155,-500.0,0.00020822,2]
[313533284,1707411038164,-500.0,0.00020822,2]
[313533285,1707411038173,-500.0,0.00020822,2]
[313533286,1707411038182,-500.0,0.00020822,2]
[313533287,1707411038191,-500.0,0.00020822,2]
[313533288,1707411038201,-500.0,0.00020822,2]
[313533289,1707411038211,-500.0,0.00020822,2]
[313533290,1707411038220,-500.0,0.00020822,2]
[313533291,1707411038229,-500.0,0.00020822,2]
[313533292,1707411038239,-500.0,0.00020822,2]
[313533293,1707411038248,-500.0,0.00020822,2]
[313533294,1707411038257,-500.0,0.00020822,2]
[313533295,1707411038266,-500.0,0.00020822,2]
[313533296,1707411038274,-500.0,0.00020822,2]
[313533297,1707411038283,-500.0,0.00020822,2]
[313533298,1707411038292,-500.0,0.00020822,2]
[313533299,1707411038302,-500.0,0.00020822,2]
[313533300,1707411038311,-500.0,0.00020822,2]
[313533301,1707411038321,-500.0,0.00020822,2]
[313533302,1707411038330,-500.0,0.00020822,2]
[313533303,1707411038341,-500.0,0.00020822,2]
[313533304,1707411038350,-500.0,0.00020822,2]
[313533305,1707411038360,-500.0,0.00020822,2]
[313533306,1707411038369,-151.0,0.00020822,2]
[313533307,1707411038380,-151.0,0.00020822,2]
[313533308,1707411038389,-151.0,0.00020822,2]
[313533309,1707411038399,-814.810494,0.00020822,2]
[313533310,1707411038408,-814.810494,0.00020822,2]
[313533311,1707411038417,-814.810494,0.00020822,2]
[313533312,1707411038430,-814.810494,0.00020822,2]
[313533313,1707411038439,-814.810494,0.00020822,2]
[313533314,1707411038448,-814.810494,0.00020822,2]
[313533315,1707411038458,-295.989705,0.00020822,2]
[313533316,1707411038467,-295.989705,0.00020822,2]
[313533317,1707411038476,-295.989705,0.00020822,2]
[313533318,1707411038557,-295.989712,0.00020822,2]
[313533319,1707411038566,-549.2455,0.00020822,2]
[313533320,1707411038576,-549.2455,0.00020822,2]
[313533321,1707411038585,-549.2455,0.00020822,2]
[313533322,1707411038594,-549.2455,0.00020822,2]
[313533323,1707411038603,-549.2455,0.00020822,2]
[313533324,1707411038613,-549.245496,0.00020822,2]
[313533325,1707411038623,-280.0,0.00021468,7]
[313533326,1707411038635,-166.666666,0.00021918,2]
[313533327,1707411038645,-293.49920597,0.00022,4]
[313533328,1707411038655,-310.02325349,0.00022,2]
[313533329,1707411038665,-427.14523557,0.00022,2]
[313533330,1707411038675,-326.35317074,0.00022,2]
[313533331,1707411038685,-166.666666,0.00022431,2]
[313533332,1707411038695,-1084.17539946,0.0002279,2]
[313533333,1707411038704,-166.666666,0.00022944,2]
[313533334,1707411038714,-1263.05688852,0.00023,2]
[313533335,1707411038723,-6606.51810173,0.00023,2]
[313533336,1707411038736,-1595.93433151,0.00023,2]
[313533417,1707411041494,-199.77831197,0.00017724,2]
[313533419,1707411041503,-687.23536463,0.00017725,2]
[313533422,1707411041519,-6563.55240956,0.00017725,2]
[313533424,1707411041531,-13708.39922723,0.00017725,2]
[313533426,1707411041540,-1767.13511484,0.00023,2]
[313533428,1707411041549,-151.0,0.00023,2]
[313533430,1707411041558,-814.810494,0.00023,2]
[313533432,1707411041567,-814.810494,0.00023,2]
[313533434,1707411041577,-166.666666,0.00023456,2]
[313533436,1707411041586,-391.0,0.00023615,7]
[313533438,1707411041595,-1501.03210374,0.000239,2]
[313533440,1707411041604,-166.666666,0.00023969,2]
[313533442,1707411041613,-4035.82532671,0.00024,2]
[313533444,1707411041622,-166.666666,0.00024482,2]
[313533446,1707411041632,-309.87598319,0.00025,2]
[313533448,1707411041641,-1029.68983013,0.00025,2]
[313533450,1707411041650,-1302.7839669,0.00025,2]
[313533452,1707411041659,-7404.37733039,0.00025,2]
[313533454,1707411041669,-335.46484066,0.00025,2]
[313533456,1707411041678,-341.563251,0.00025145,2]
[313533458,1707411041687,-1084.17539946,0.00025345,2]
[313533460,1707411041696,-200.0,0.00025976,7]
[313533462,1707411041706,-348.0,0.00025976,7]
[313533464,1707411041715,-153.0,0.00026268,2]
[313533466,1707411041725,-176.135036,0.000263,2]
[313533468,1707411041734,-3250.18974892,0.00026388,2]
[313533470,1707411041743,-151.0,0.00026388,2]
[313533472,1707411041751,-814.810494,0.00026388,2]
[313533474,1707411041760,-814.810501,0.00026388,2]
[313533475,1707411041770,-5000.0,0.0002639,2]
[313533478,1707411041779,-5000.0,0.0002639,2]
[313533480,1707411041788,-54880.95182534,0.0002639,2]
[313533482,1707411041797,-13132.76493227,0.0002639,2]
[313533483,1707411041806,-31260.33485383,0.0002639,2]
[313533485,1707411041816,-11578.08008666,0.0002639,2]
[313533487,1707411041825,-372.33224874,0.00026393,2]
[313533489,1707411041834,-3169.82696086,0.00026395,2]
[313533491,1707411041844,-676.35289569,0.000264,2]
[313533493,1707411041854,-8673.81002401,0.0002658,4]
[313533495,1707411041863,-620.39470382,0.00026728,2]
[313533497,1707411041872,-3200.0,0.00027,2]
[313533499,1707411041883,-155.72424094,0.00027,2]
[313533501,1707411041894,-184.46439118,0.00027,2]
[313533503,1707411041903,-1382.75585323,0.00027,2]
[313533505,1707411041912,-151.0,0.00027228,2]
[313533507,1707411041921,-2091.03843255,0.00027397,2]
[313533509,1707411041930,-155.10547172,0.00027397,2]
[313533512,1707411041939,-280.5209617,0.00027397,2]
[313533514,1707411041948,-1831.79022935,0.00027397,2]
[313533516,1707411041958,-766.13227531,0.00027397,2]
[313533518,1707411041967,-155.10391963,0.00027397,2]
[313533520,1707411041976,-300.0,0.00027397,2]
[313533522,1707411041986,-155.0,0.00027397,2]
[313533524,1707411041995,-500.0,0.00027397,2]
[313533525,1707411042004,-5518.33,0.00027397,3]
[313533527,1707411042013,-10523.09,0.00027397,3]
[313533529,1707411042023,-8769.24,0.00027397,3]
[313533531,1707411042032,-7307.7,0.00027397,3]
[313533533,1707411042041,-500.0,0.00027534,2]
[313533536,1707411042050,-500.0,0.00027671,2]
[313533538,1707411042060,-622.81764478,0.0002772,2]
[313533540,1707411042071,-500.0,0.00027808,2]
[313533542,1707411042080,-1084.17539946,0.000279,2]
[313533544,1707411042089,-504.57575308,0.00027945,2]
[313533546,1707411042098,-1897.21350752,0.00028,2]
[313533547,1707411042107,-51938.09489488,0.00028,2]
[313533549,1707411042117,-1716.51144437,0.00028,2]
[313533551,1707411042126,-50172.00751945,0.00028,20]
[313533553,1707411042138,-155.41972694,0.00028,2]
[313533556,1707411042148,-201.5425736,0.00028,2]
[313533558,1707411042158,-620.01973519,0.00028065,2]
[313533559,1707411042169,-151.0,0.00028067,2]
[313533562,1707411042179,-20330.54525018,0.00028188,5]
[313533564,1707411042189,-130834.73159379,0.000282,3]
[313533566,1707411042199,-6932.9276499,0.000285,2]
[313533568,1707411042209,-200.0,0.00028574,15]
[313533570,1707411042218,-200.0,0.00028574,15]
[313533572,1707411042228,-368.0,0.00028574,15]
[313533573,1707411042238,-155.0,0.00028767,2]
[313533575,1707411042247,-1501.03210374,0.000289,2]
[313533577,1707411042257,-151.0,0.00028906,2]
[313533579,1707411042266,-431.64594525,0.00028999,2]
[313533581,1707411042275,-500.0,0.00028999,2]
[313533583,1707411042285,-500.0,0.00028999,2]
[313533585,1707411042294,-500.0,0.00028999,2]
[313533587,1707411042303,-500.0,0.00028999,2]
[313533589,1707411042312,-500.0,0.00028999,2]
[313533591,1707411042322,-500.0,0.00028999,2]
[313533593,1707411042331,-500.0,0.00028999,2]
[313533595,1707411042340,-285.97600004,0.00028999,2]
[313533597,1707411042349,-500.0,0.00028999,2]
[313533599,1707411042359,-500.0,0.00028999,2]
[313533609,1707411042368,-296.14795225,0.00028999,2]
[313533611,1707411042454,-500.0,0.00028999,2]
[313533613,1707411042464,-500.0,0.00028999,2]
[313533615,1707411042473,-500.0,0.00028999,2]
[313533617,1707411042482,-500.0,0.00028999,2]
[313533619,1707411042490,-500.0,0.00028999,2]
[313533621,1707411042499,-500.0,0.00028999,2]
[313533623,1707411042509,-500.0,0.00028999,2]
[313533625,1707411042518,-500.0,0.00028999,2]
[313533627,1707411042528,-500.0,0.00028999,2]
[313533629,1707411042537,-500.0,0.00028999,2]
[313533631,1707411042546,-500.0,0.00028999,2]
[313533633,1707411042556,-500.0,0.00028999,2]
[313533635,1707411042565,-500.0,0.00028999,2]
[313533637,1707411042575,-500.0,0.00028999,2]
[313533639,1707411042584,-500.0,0.00028999,2]
[313533641,1707411042593,-500.0,0.00028999,2]
[313533643,1707411042602,-500.0,0.00028999,2]
[313533645,1707411042611,-500.0,0.00028999,2]
[313533647,1707411042620,-200.0,0.00028999,2]
[313533649,1707411042630,-500.0,0.00028999,2]
[313533651,1707411042639,-500.0,0.00028999,2]
[313533653,1707411042648,-500.0,0.00028999,2]
[313533655,1707411042657,-302.21505386,0.00028999,2]
[313533657,1707411042666,-305.17727438,0.00028999,2]
[313533659,1707411042674,-500.0,0.00028999,2]
[313533661,1707411042683,-500.0,0.00028999,2]
[313533663,1707411042692,-500.0,0.00028999,2]
[313533664,1707411042702,-167.11452125,0.00028999,2]
[313533666,1707411042711,-248.40956814,0.00028999,2]
[313533668,1707411042721,-500.0,0.00028999,2]
[313533670,1707411042730,-500.0,0.00028999,2]
[313533672,1707411042739,-500.0,0.00028999,2]
[313533675,1707411042749,-500.0,0.00028999,2]
[313533676,1707411042758,-500.0,0.00028999,2]
[313533679,1707411042767,-500.0,0.00028999,2]
[313533681,1707411042777,-500.0,0.00028999,2]
[313533683,1707411042786,-500.0,0.00028999,2]
[313533684,1707411042796,-500.0,0.00028999,2]
[313533686,1707411042805,-500.0,0.00028999,2]
[313533689,1707411042814,-500.0,0.00028999,2]
[313533690,1707411042823,-378.96374087,0.00028999,2]
[313533693,1707411042833,-500.0,0.00028999,2]
[313533694,1707411042842,-500.0,0.00028999,2]
[313533697,1707411042853,-500.0,0.00028999,2]
[313533699,1707411042862,-500.0,0.00028999,2]
[313533700,1707411042871,-500.0,0.00028999,2]
[313533702,1707411042881,-500.0,0.00028999,2]
[313533704,1707411042893,-500.0,0.00028999,2]
[313533706,1707411042902,-500.0,0.00028999,2]
[313533708,1707411042912,-500.0,0.00028999,2]
[313533710,1707411042921,-500.0,0.00028999,2]
[313533713,1707411042931,-593.2576824,0.00028999,2]
[313533714,1707411042940,-500.0,0.00028999,2]
[313533716,1707411042950,-500.0,0.00028999,2]
[313533718,1707411042959,-500.0,0.00028999,2]
[313533720,1707411042968,-500.0,0.00028999,2]
[313533722,1707411042978,-568.60410063,0.00028999,2]
[313533724,1707411042987,-500.0,0.00028999,2]
[313533726,1707411042996,-500.0,0.00028999,2]
[313533728,1707411043005,-500.0,0.00028999,2]
[313533730,1707411043015,-539.2379952,0.00028999,2]
[313533732,1707411043024,-500.0,0.00028999,2]
[313533734,1707411043033,-650.0,0.00028999,2]
[313533736,1707411043043,-500.0,0.00028999,2]
[313533738,1707411043052,-500.0,0.00028999,2]
[313533742,1707411043061,-155.64559155,0.00029,2]
[313533747,1707411043070,-183.35515758,0.00029,10]
[313533752,1707411043079,-4740.00239217,0.00029,2]
[313533763,1707411043105,-893.75484961,0.00029,2]
[313533818,1707411043296,-1305.39667217,0.00029,2]
[313533822,1707411043306,-5761.98972485,0.00029,2]
[313533826,1707411043318,-1580.86595,0.00029,2]
[313533829,1707411043329,-27143.98745118,0.00029,2]
[313533832,1707411043340,-2959.97236767,0.00029,2]
[313533834,1707411043351,-9102.20316487,0.00029,2]
[313533890,1707411043716,-616.25571,0.0002638,3]
[313533899,1707411043791,-2352.3338482,0.0002638,3]
[313534341,1707411047013,-323.84455679,0.00026379,2]
[313534344,1707411047022,-176.15544321,0.00026379,2]
[313534347,1707411047035,-2430.31635259,0.00026379,2]
[313534350,1707411047044,-477.34026866,0.00026379,2]
[313534376,1707411047138,-330.15923285,0.00026379,2]
[313534380,1707411047148,-166.99425274,0.00026379,2]
[313534383,1707411047159,-181.35621914,0.00026379,2]
[313534387,1707411047169,-310.01858225,0.00026379,2]
[313534391,1707411047179,-414.8081887,0.00026379,2]
[313534394,1707411047189,-164.9589752,0.00026379,2]
[313534398,1707411047198,-3250.4304418,0.0002638,3]
[313534401,1707411047208,-578.0,0.000273,2]
[313534405,1707411047218,-2878.56034184,0.00029,2]
[313534409,1707411047227,-835.26139962,0.00029,2]
[313534412,1707411047236,-17051.07825236,0.00029,2]
[313534415,1707411047246,-2000.0,0.00029,2]
[313534418,1707411047255,-2000.0,0.0002901,2]
[313534421,1707411047264,-2000.0,0.0002902,2]
[313534424,1707411047274,-2000.0,0.0002903,2]
[313534427,1707411047283,-2000.0,0.0002904,2]
[313534429,1707411047292,-2000.0,0.0002905,2]
[313534433,1707411047302,-2000.0,0.0002906,2]
[313534437,1707411047312,-2000.0,0.0002907,2]
[313534438,1707411047322,-2000.0,0.0002908,2]
[313534441,1707411047333,-2000.0,0.0002909,2]
[313534445,1707411047343,-2000.0,0.000291,2]
[313534448,1707411047352,-620.14088224,0.00029106,2]
[313534451,1707411047361,-2000.0,0.0002911,2]
[313534455,1707411047371,-2000.0,0.0002912,2]
[313534457,1707411047381,-2000.0,0.0002913,2]
[313534460,1707411047393,-2656.825064,0.0002914,2]
[313534463,1707411047402,-620.00098676,0.00029468,2]
[313534466,1707411047411,-37943.17861407,0.000295,30]
[313534469,1707411047420,-151.0,0.00029745,2]
[313534472,1707411047429,-300.0,0.000299,14]
[313534474,1707411047438,-189.0197261,0.0002994,2]
[313534477,1707411047447,-4775.70992119,0.0003,2]
[313534479,1707411047456,-2986.77747873,0.0003,4]
[313534483,1707411047465,-349.8322969,0.0003,4]
[313534485,1707411047474,-504.07876722,0.0003,14]
[313534488,1707411047483,-155.08064193,0.0003,4]
[313534492,1707411047493,-589.93043063,0.0003,3]
[313534495,1707411047502,-57269.69411772,0.0003,10]
[313534497,1707411047511,-2506.0,0.0003,2]
[313534501,1707411047521,-238.0,0.0003,2]
[313534503,1707411047530,-158.8308104,0.00030137,2]
[313534506,1707411047539,-161.866439,0.00030137,2]
[313534510,1707411047548,-154.1621478,0.00030137,2]
[313534512,1707411047557,-158.2558944,0.00030137,2]
[313534515,1707411047566,-402.0743214,0.00030137,2]
[313534519,1707411047576,-153.0,0.00030137,2]
[313534521,1707411047585,-398.8368863,0.00030137,2]
[313534524,1707411047595,-153.0,0.00030137,2]
[313534528,1707411047604,-153.0,0.00030137,2]
[313534531,1707411047613,-153.0,0.00030137,2]
[313534533,1707411047623,-153.0,0.00030137,2]
[313534537,1707411047632,-153.0,0.00030137,2]
[313534539,1707411047644,-312.2387723,0.00030137,2]
[313534542,1707411047653,-199.9537868,0.00030137,2]
[313534545,1707411047662,-199.9537868,0.00030137,2]
[313534548,1707411047671,-199.9537868,0.00030137,2]
[313534551,1707411047680,-306.9182303,0.00030137,2]
[313534554,1707411047689,-155.0,0.00030137,2]
[313534556,1707411047699,-151.07553777,0.00030198,30]
[313534558,1707411047708,-620.00704411,0.00030561,2]
[313534560,1707411047718,-151.0,0.00030585,2]
[313534563,1707411047727,-151.07553777,0.00030815,7]
[313534565,1707411047740,-1000.0,0.00031,31]
[313534567,1707411047749,-500.164359,0.00031,2]
[313534569,1707411047759,-1200.0,0.00031043,4]
[313534571,1707411047768,-3252.59212443,0.00031043,4]
[313534573,1707411047777,-2000.0,0.00031043,2]
[313534575,1707411047786,-200.0,0.00031312,2]
[313534577,1707411047795,-158.76748035,0.00031339,7]
[313534579,1707411047804,-300.0,0.000314,15]
[313534581,1707411047813,-151.0,0.00031424,2]
[313534583,1707411047822,-200.0,0.00031431,15]
[313534585,1707411047831,-295.0,0.00031431,15]
[313534587,1707411047841,-151.07553777,0.00031444,4]
[313534589,1707411047851,-155.0,0.00031507,2]
[313534591,1707411047863,-150.1,0.00031613,2]
[313534593,1707411047873,-3902.01669777,0.0003199,5]
[313534595,1707411047882,-288.26967382,0.00031998,4]
[313534597,1707411047894,-6000.0,0.00031999,3]
[313534599,1707411047905,-803.21,0.00031999,2]
[313534601,1707411047914,-803.21,0.00031999,2]
[313534603,1707411047923,-803.21,0.00031999,2]
[313534605,1707411047931,-803.21,0.00031999,2]
[313534607,1707411047942,-803.21,0.00031999,2]
[313534609,1707411047952,-803.21,0.00031999,2]
[313534611,1707411047962,-803.21,0.00031999,2]
[313534613,1707411047971,-803.21,0.00031999,2]
[313534615,1707411047980,-803.21,0.00031999,2]
[313534617,1707411047990,-803.21,0.00031999,2]
[313534619,1707411047999,-148447.16912644,0.00032,15]
[313534621,1707411048012,-12475.19534725,0.00032,15]
[313534623,1707411048024,-6210.70989295,0.00032,15]
[313534625,1707411048035,-3063.930856,0.00032,15]
[313539044,1707411236073,4743.2890838,0.0001631,2]
[313539048,1707411252157,4101.63337743,0.000125,2]
[313539049,1707411252187,2021.1765796,0.000125,2]
[313539051,1707411266704,269.7154861,0.0001,2]
[313539065,1707411650823,270.6612929,0.00016814,2]
[313539078,1707411755753,237.3879342,0.00016803,2]
[313539084,1707411797952,1457.71190432,0.00016814,5]
[313539086,1707411831946,1357.71190432,0.00016814,5]
[313539088,1707411853956,975.10933496,0.00016814,5]
[313539094,1707411979536,6201.0587072,0.00016807,2]
[313539095,1707411979562,18698.9412928,0.00016807,2]
[313539191,1707412238777,-155.05892239,0.00017661,2]
[313539192,1707412238787,-155.05892239,0.00017661,2]
[313539193,1707412238798,-294.57728151,0.00017662,2]
[313539194,1707412238807,-2606.4717958,0.00017662,2]
[313539195,1707412238817,-3331.11583039,0.00017663,2]
[313539196,1707412238826,-161.52708074,0.00017663,2]
[313539197,1707412238836,-175.72920133,0.00017663,2]
[313539198,1707412238845,-1947.3753187,0.00017663,2]
[313539199,1707412238853,-500.0,0.00017663,2]
[313539200,1707412238862,-159.31275782,0.00017664,2]
[313539201,1707412238872,-1757.99241626,0.00017664,3]
[313539202,1707412238881,-1745.88499104,0.00017664,2]
[313539203,1707412238890,-1018.41805308,0.00017665,2]
[313539204,1707412238899,-155.40765533,0.00017665,2]
[313539205,1707412238909,-199.77831197,0.00017665,2]
[313539206,1707412238919,-2467.49018674,0.00017666,2]
[313539207,1707412238929,-261.08056277,0.00017666,2]
[313539208,1707412238940,-261.88794378,0.00017666,2]
[313539209,1707412238949,-523.68160801,0.00017666,2]
[313539210,1707412238959,-155.05892239,0.00017667,2]
[313539211,1707412238968,-155.05892239,0.00017667,3]
[313539212,1707412238978,-9392.97703689,0.00017667,2]
[313539213,1707412238988,-155.29678995,0.00017668,2]
[313539214,1707412238997,-37068.7030693,0.0001767,2]
[313539215,1707412239006,-20026.77509158,0.00017686,2]
[313539216,1707412239015,-5403.58957462,0.00017699,2]
[313539217,1707412239024,-185.93740982,0.00017705,2]
[313539218,1707412239033,-27141.67317875,0.00017815,2]
[313539219,1707412239042,-1000.0,0.00017829,3]
[313539220,1707412239051,-1000.0,0.00017829,3]
[313539221,1707412239060,-1000.0,0.00017829,3]
[313539222,1707412239069,-1000.0,0.00017829,3]
[313539223,1707412239078,-1000.0,0.00017829,3]
[313539224,1707412239087,-1000.0,0.00017829,3]
[313539225,1707412239097,-1000.0,0.00017829,3]
[313539226,1707412239106,-422.66718412,0.00017829,3]
[313539227,1707412239115,-200.0,0.00019445,2]
[313539228,1707412239127,-5854.11087692,0.00019499,2]
[313539229,1707412239136,-1114.9970642,0.000195,2]
[313539230,1707412239146,-1201.92575629,0.00020169,2]
[313539231,1707412239155,-324.06509508,0.0002017,2]
[313539232,1707412239164,-741.55288489,0.0002017,2]
[313539233,1707412239173,-454.37321419,0.00020171,2]
[313539234,1707412239182,-1748.4047811,0.00021,2]
[313539235,1707412239190,-428.50000661,0.00021797,2]
[313539236,1707412239199,-155.04461547,0.00021893,2]
[313539237,1707412239208,-12623.56820438,0.00021899,2]
[313539238,1707412239218,-166.666666,0.00021918,2]
[313539239,1707412239227,-155.04961588,0.00021994,2]
[313539240,1707412239237,-2110.10399171,0.00021998,2]
[313539241,1707412239250,-293.81151229,0.00022,4]
[313539242,1707412239259,-19530.95680954,0.00022,2]
[313539243,1707412239268,-326.48350937,0.00022,2]
[313539244,1707412239278,-155.0480649,0.00022,2]
[313539245,1707412239287,-427.31508471,0.00022,2]
[313539246,1707412239297,-216.42107551,0.00023,2]
[313539247,1707412239306,-1263.33437611,0.00023,2]
[313539248,1707412239316,-166.666666,0.000232,2]
[313539249,1707412239326,-14671.20692655,0.000239,2]
[313539250,1707412239337,-166.666666,0.00024482,2]
[313539251,1707412239345,-1675.04448708,0.00024997,2]
[313539252,1707412239355,-4739.06901527,0.00025,2]
[313539253,1707412239364,-5557.25402371,0.00025,2]
[313539254,1707412239374,-1640.46942817,0.00025297,2]
[313539255,1707412239383,-4547.61624405,0.000258,2]
[313539256,1707412239393,-280.5209617,0.00026,2]
[313539257,1707412239402,-260.83486145,0.00026365,2]
[313539258,1707412239411,-9994.57328092,0.00026375,2]
[313539259,1707412239421,-5933.32265663,0.00026375,2]
[313539260,1707412239431,-6298.09855551,0.00026375,2]
[313539261,1707412239440,-1353.37504032,0.00026376,2]
[313539262,1707412239449,-309.98450155,0.00026376,2]
[313539263,1707412239458,-322.12110266,0.00026377,2]
[313539264,1707412239467,-209.59950167,0.00026378,2]
[313539265,1707412239476,-1299.863468,0.00026378,2]
[313539266,1707412239484,-521.48416638,0.00026378,2]
[313539267,1707412239493,-314.41055842,0.00026378,2]
[313539268,1707412239502,-224.79998451,0.00026378,2]
[313539269,1707412239511,-562.60052724,0.00026379,2]
[313539270,1707412239520,-258.54973267,0.00026379,2]
[313539271,1707412239528,-8085.93664197,0.0002639,2]
[313539272,1707412239537,-10356.86679012,0.0002639,2]
[313539273,1707412239545,-3601.61155266,0.0002639,2]
[313539274,1707412239555,-195.34901906,0.00026397,2]
[313539275,1707412239564,-700.0,0.00026397,2]
[313539276,1707412239574,-388.45074596,0.00026397,2]
[313539277,1707412239583,-681.743973,0.00026397,2]
[313539278,1707412239592,-211.22734039,0.00026397,2]
[313539279,1707412239602,-213.26877668,0.00026397,2]
[313539280,1707412239610,-500.0,0.00026799,2]
[313539281,1707412239621,-511.41065011,0.00026799,2]
[313539282,1707412239630,-500.0,0.00026799,2]
[313539283,1707412239639,-500.0,0.00026799,2]
[313539284,1707412239649,-500.0,0.00026799,2]
[313539285,1707412239658,-500.0,0.00026799,2]
[313539286,1707412239667,-500.0,0.00026799,2]
[313539287,1707412239677,-500.0,0.00026799,2]
[313539288,1707412239688,-500.0,0.00026799,2]
[313539289,1707412239698,-500.0,0.00026799,2]
[313539290,1707412239707,-500.0,0.00026799,2]
[313539291,1707412239717,-500.0,0.00026799,2]
[313539292,1707412239726,-499.049988,0.00026799,2]
[313539293,1707412239736,-500.0,0.00026799,2]
[313539294,1707412239746,-500.0,0.00026799,2]
[313539295,1707412239756,-500.0,0.00026799,2]
[313539296,1707412239765,-500.0,0.00026799,2]
[313539297,1707412239775,-500.0,0.00026799,2]